fUSD/lending_fUSD_20260112
["ID","MTS","AMOUNT","RATE_DAILY","PERIOD"]
[401472851,1768251058597,-500.0,0.00017973,2]
[401472852,1768251058608,-273.6592917,0.00017973,2]
[401472853,1768251058619,-500.0,0.00017973,2]
[401472854,1768251058630,-500.0,0.00017973,2]
[401472855,1768251058640,-500.0,0.00017973,2]
[401472856,1768251058651,-500.0,0.00017973,2]
[401472857,1768251058662,-500.0,0.00017973,2]
[401472858,1768251058672,-500.0,0.00017973,2]
[401472859,1768251058683,-500.0,0.00017973,2]
[401472860,1768251058694,-500.0,0.00017973,2]
[401472861,1768251058705,-500.0,0.00017973,2]
[401472862,1768251058716,-500.0,0.00017973,2]
[401472863,1768251058727,-500.0,0.00017973,2]
[401472864,1768251058738,-191.10319937,0.00017973,2]
[401472865,1768251058749,-500.0,0.00017973,2]
[401472866,1768251058760,-515.69548792,0.00017973,2]
[401472867,1768251058770,-500.0,0.00017973,2]
[401472868,1768251058780,-500.0,0.00017973,2]
[401472869,1768251058791,-500.0,0.00017973,2]
[401472870,1768251058801,-500.0,0.00017973,2]
[401472871,1768251059330,-500.0,0.00017973,2]
[401472872,1768251059425,-500.0,0.00017973,2]
[401472873,1768251059442,-500.0,0.00017973,2]
[401472874,1768251059452,-500.0,0.00017973,2]
[401472875,1768251059462,-500.0,0.00017973,2]
[401472876,1768251059472,-500.0,0.00017973,2]
[401472877,1768251059482,-382.22994489,0.00017973,2]
[401472878,1768251059492,-500.0,0.00017973,2]
[401472879,1768251059503,-529.04,0.0001798,2]
[401472880,1768251059512,-500.0,0.0001798,2]
[401472881,1768251059521,-500.0,0.0001798,2]
[401472882,1768251059531,-500.0,0.0001798,2]
[401472883,1768251059542,-202.55010717,0.0001798,2]
[401472884,1768251059552,-940.79554436,0.0001799,2]
[401472885,1768251059562,-847.57037688,0.00017999,2]
[401472886,1768251059572,-83557.72189143,0.00017999,2]
[401472887,1768251059582,-500.0,0.00017999,2]
[401472888,1768251059592,-500.0,0.00017999,2]
[401472889,1768251059602,-619.96,0.00017999,2]
[401472890,1768251059612,-50000.0,0.00018,2]
[401472891,1768251059621,-50000.0,0.00018,2]
[401472892,1768251059631,-50000.0,0.00018,2]
[401472893,1768251059640,-50000.0,0.00018,2]
[401472894,1768251059650,-27000.0,0.00018,2]
[401472895,1768251059660,-152.17395716,0.00018,2]
[401472896,1768251059670,-168.17544903,0.00018,2]
[401472897,1768251059680,-154.0277597,0.00018,2]
[401472898,1768251059689,-258.87570059,0.00018,2]
[401472899,1768251059699,-150.00000001,0.00018,2]
[401472900,1768251059710,-295.62164012,0.00018,2]
[401472901,1768251059720,-204.25495576,0.00018,2]
[401472902,1768251059730,-150.0,0.00018,2]
[401472903,1768251059740,-150.0,0.00018,2]
[401472904,1768251059749,-150.0,0.00018,2]
[401472905,1768251059759,-285.23983713,0.00018,2]
[401472906,1768251059769,-150.0,0.00018,2]
[401472907,1768251059779,-1173625.43604917,0.00018,2]
[401472908,1768251060371,-432.46183533,0.00018,2]
[401472909,1768251060404,-401.616215,0.00013181,2]
[401472910,1768251060437,-98.383785,0.00013181,2]
[401472911,1768251060447,-500.0,0.00013181,2]
[401472912,1768251060456,-6494.51706896,0.00018,2]
[401472913,1768251060468,-2002.95261549,0.00018,2]
[401472914,1768251060481,-3545.4125789,0.00018,2]
[401472915,1768251060492,-7119.91829766,0.00018,2]
[401472916,1768251060546,-500.0,0.00013181,2]
[401472917,1768251060556,-500.0,0.00013181,2]
[401472918,1768251060565,-274834.57554727,0.00018,2]
[401472919,1768251060576,-1439.312,0.00018,2]
[401472920,1768251060977,-500.0,0.00013181,2]
[401472921,1768251060988,-500.0,0.00013181,2]
[401472922,1768251060998,-500.0,0.00013181,2]
[401472923,1768251061007,-500.0,0.00013181,2]
[401472924,1768251061019,-500.0,0.00013181,2]
[401472925,1768251061029,-500.0,0.00013181,2]
[401472926,1768251061038,-500.0,0.00013181,2]
[401472927,1768251061048,-548.74246241,0.00013181,2]
[401472928,1768251061059,-500.0,0.00013181,2]
[401472929,1768251061068,-500.0,0.00013181,2]
[401472930,1768251061078,-597.29423811,0.00015684,2]
[401472931,1768251061088,-597.29423808,0.00016127,2]
[401472932,1768251061098,-597.29423808,0.0001657,2]
[401472933,1768251061108,-597.29423808,0.00017014,2]
[401472934,1768251061118,-597.29423808,0.00017457,2]
[401472935,1768251061128,-597.29423808,0.000179,2]
[401472936,1768251061138,-77289.99912716,0.00018,2]
[401472937,1768251061157,-1000.0,0.00018,2]
[401472938,1768251061471,-309.91265279,0.000148,2]
[401472939,1768251061482,-151.0,0.00015166,2]
[401472940,1768251061492,-151.0,0.00015166,2]
[401472941,1768251061502,-661.95,0.00016763,2]
[401472942,1768251061512,-761857.849754,0.00018,2]
[401472943,1768251061523,-161782.65327267,0.00018,2]
[401472944,1768251061534,-2368.02515663,0.00018,2]
[401472945,1768251061627,-145.56296749,0.00016815,2]
[401472946,1768251061671,-2291.43703251,0.00016815,2]
[401472947,1768251061680,-1659.27396749,0.00018,2]
[401472948,1768251061695,-550.04304676,0.00018,2]
[401472949,1768251061706,-1706.37824444,0.00018,2]
[401472950,1768251061718,-358.8,0.00018,2]
[401472951,1768251061730,-6859.43902888,0.00018,2]
[401472952,1768251616670,3656.0,0.000142,5]
[401472953,1768251649456,999.0,0.00012728,3]
[401472954,1768251775267,-154.88468661,0.00011967,2]
[401472955,1768251776734,-123.51531339,0.00011967,2]
[401472956,1768251776759,-111.93008083,0.00012165,2]
[401472957,1768251779379,-154.20912204,0.00012165,2]
[401472958,1768251966567,167.16,0.00011759,2]
[401472962,1768252159151,-12.26079713,0.00012165,2]
[401472963,1768252159173,-278.4,0.00012364,2]
[401472964,1768252159194,-278.4,0.00012563,2]
[401472965,1768252159215,-1200.0,0.00012727,2]
[401472966,1768252159236,-225.0092045,0.00012727,2]
[401472970,1768252231440,-394.45008645,0.00012727,2]
[401472971,1768252231452,-286.96095259,0.00012727,2]
[401473053,1768252237489,-518.58896096,0.00012727,2]
[401473054,1768252237498,-460.77544688,0.00012728,2]
[401473055,1768252237509,-39.22455312,0.00012728,2]
[401473056,1768252237518,-298.6,0.00012728,2]
[401473057,1768252237528,-150.0,0.00012728,2]
[401473058,1768252237537,-500.0,0.00012728,2]
[401473059,1768252237546,-500.0,0.00012728,2]
[401473060,1768252237555,-278.4,0.00012762,2]
[401473061,1768252237564,-278.4,0.00012961,2]
[401473062,1768252237574,-278.4,0.0001316,2]
[401473063,1768252237583,-278.4,0.00013359,2]
[401473064,1768252237592,-278.4,0.00013558,2]
[401473065,1768252237601,-500.0,0.00013753,2]
[401473066,1768252237610,-500.0,0.00013753,2]
[401473067,1768252237618,-500.0,0.00013753,2]
[401473068,1768252237627,-500.0,0.00013753,2]
[401473069,1768252237636,-9.17575845,0.00013753,2]
[401473070,1768252237648,-490.82424155,0.00013753,2]
[401473071,1768252237657,-500.0,0.00013753,2]
[401473072,1768252237666,-500.0,0.00013753,2]
[401473073,1768252237675,-500.0,0.00013753,2]
[401473074,1768252237684,-500.0,0.00013753,2]
[401473075,1768252237693,-500.0,0.00013753,2]
[401473076,1768252237702,-500.0,0.00013753,2]
[401473077,1768252237711,-500.0,0.00013753,2]
[401473079,1768252237720,-500.0,0.00013753,2]
[401473081,1768252237729,-500.0,0.00013753,2]
[401473083,1768252237738,-500.0,0.00013753,2]
[401473085,1768252237748,-500.0,0.00013753,2]
[401473087,1768252237757,-500.0,0.00013753,2]
[401473089,1768252237766,-500.0,0.00013753,2]
[401473091,1768252237775,-500.0,0.00013753,2]
[401473093,1768252237784,-500.0,0.00013753,2]
[401473095,1768252237793,-500.0,0.00013753,2]
[401473097,1768252237803,-500.0,0.00013753,2]
[401473098,1768252237812,-500.0,0.00013753,2]
[401473100,1768252237821,-500.0,0.00013753,2]
[401473102,1768252237830,-500.0,0.00013753,2]
[401473104,1768252237839,-500.0,0.00013753,2]
[401473106,1768252237848,-500.0,0.00013753,2]
[401473108,1768252237857,-500.0,0.00013753,2]
[401473110,1768252237867,-500.0,0.00013753,2]
[401473112,1768252237876,-500.0,0.00013753,2]
[401473114,1768252237885,-500.0,0.00013753,2]
[401473116,1768252237894,-500.0,0.00013753,2]
[401473118,1768252237904,-278.4,0.00013757,2]
[401473120,1768252237912,-4517.32,0.00013757,2]
[401473122,1768252237921,-6889.28,0.00013757,2]
[401473124,1768252237930,-746.01,0.00013757,2]
[401473126,1768252237939,-1534.87,0.00013757,2]
[401473128,1768252237948,-367.0678,0.00013954,2]
[401473130,1768252237957,-278.4,0.00013956,2]
[401473132,1768252237965,-1680.0,0.00014,2]
[401473133,1768252237974,-1000.0,0.00014054,2]
[401473135,1768252237983,-500.0,0.00014153,2]
[401473138,1768252237992,-500.0,0.00014153,2]
[401473139,1768252238000,-526.37134529,0.00014153,2]
[401473141,1768252238009,-500.0,0.00014153,2]
[401473143,1768252238018,-500.0,0.00014153,2]
[401473145,1768252238027,-500.0,0.00014153,2]
[401473147,1768252238036,-500.0,0.00014153,2]
[401473149,1768252238044,-500.0,0.00014153,2]
[401473151,1768252238053,-278.4,0.00014155,2]
[401473153,1768252238063,-157.56760377,0.00014335,2]
[401473156,1768252238075,-342.43239623,0.00014335,2]
[401473158,1768252238084,-333.72655515,0.00014349,2]
[401473160,1768252238095,-268.66687186,0.00014349,2]
[401473162,1768252238106,-1855.68304921,0.00014349,2]
[401473164,1768252238117,-278.4,0.00014353,2]
[401473166,1768252238126,-278.4,0.00014552,2]
[401473168,1768252238135,-322.6107,0.00014571,2]
[401473170,1768252238144,-998.0,0.00014571,2]
[401473172,1768252238153,-185.83373875,0.00014656,2]
[401473174,1768252238162,-421.05269848,0.00014656,2]
[401473176,1768252238171,-231.72004132,0.00014656,2]
[401473178,1768252238180,-207.10243555,0.00014656,2]
[401473180,1768252238189,-2458.17967956,0.00014657,2]
[401473183,1768252238201,-3188.99712983,0.00014657,2]
[401473185,1768252238210,-450.76292455,0.00014657,2]
[401473188,1768252238229,-8735.54283057,0.00014657,2]
[401473190,1768252238238,-12973.80542265,0.00014657,2]
[401473193,1768252238247,-16787.826,0.00014657,2]
[401473195,1768252238256,-278.4,0.00014751,2]
[401473196,1768252238265,-500.0,0.00014798,2]
[401473198,1768252238274,-500.0,0.00014798,2]
[401473200,1768252238284,-1000.0,0.00014806,2]
[401473202,1768252238293,-500.0,0.00014853,2]
[401473204,1768252238304,-500.0,0.00014853,2]
[401473206,1768252238313,-500.0,0.00014908,2]
[401473208,1768252238323,-500.0,0.00014908,2]
[401473210,1768252238332,-278.4,0.0001495,2]
[401473212,1768252238343,-500.0,0.00014962,2]
[401473214,1768252238352,-500.0,0.00014962,2]
[401473216,1768252238362,-500.0,0.00015017,2]
[401473218,1768252238373,-500.0,0.00015017,2]
[401473220,1768252238383,-500.0,0.00015072,2]
[401473222,1768252238393,-500.0,0.00015072,2]
[401473224,1768252238402,-500.0,0.00015127,2]
[401473226,1768252238412,-500.0,0.00015127,2]
[401473228,1768252238420,-166.66,0.0001514,2]
[401473230,1768252238429,-278.4,0.00015149,2]
[401473232,1768252238439,-500.0,0.00015182,2]
[401473234,1768252238448,-500.0,0.00015182,2]
[401473236,1768252238457,-426.2342163,0.00015236,2]
[401473238,1768252238467,-395.27143553,0.00015236,2]
[401473240,1768252238476,-278.4,0.00015348,2]
[401473242,1768252238485,-2351.0,0.000154,2]
[401473244,1768252238495,-278.4,0.00015547,2]
[401473246,1768252238504,-166.66,0.00015639,2]
[401473248,1768252238514,-278.4,0.00015746,2]
[401473250,1768252238523,-331.0587867,0.0001594,2]
[401473252,1768252238532,-2789.05,0.00016017,2]
[401473254,1768252238540,-250.0,0.00016075,2]
[401473256,1768252238549,-166.66,0.00016139,2]
[401473258,1768252238559,-150.0,0.000162,2]
[401473260,1768252238568,-150.0,0.000162,2]
[401473261,1768252238578,-150.0,0.000162,2]
[401473263,1768252238587,-150.0,0.000162,2]
[401473265,1768252238597,-150.0,0.000162,2]
[401473267,1768252238606,-150.0,0.000162,2]
[401473270,1768252238616,-150.0,0.000162,2]
[401473271,1768252238625,-150.0,0.000162,2]
[401473273,1768252238634,-150.0,0.000162,2]
[401473275,1768252238644,-150.0,0.000162,2]
[401473277,1768252238652,-150.0,0.000162,2]
[401473279,1768252238661,-150.0,0.000162,2]
[401473281,1768252238670,-150.0,0.000162,2]
[401473283,1768252238679,-500.0,0.00016426,2]
[401473285,1768252238688,-500.0,0.00016426,2]
[401473287,1768252238697,-500.0,0.00016426,2]
[401473289,1768252238706,-500.0,0.00016426,2]
[401473291,1768252238716,-500.0,0.00016426,2]
[401473293,1768252238725,-1000.0,0.00016426,2]
[401473295,1768252238734,-500.0,0.00016426,2]
[401473297,1768252238744,-500.0,0.00016426,2]
[401473299,1768252238753,-1000.0,0.00016426,2]
[401473301,1768252238761,-500.0,0.00016426,2]
[401473303,1768252238770,-500.0,0.00016426,2]
[401473305,1768252238779,-1000.0,0.00016426,2]
[401473307,1768252238788,-500.0,0.00016426,2]
[401473309,1768252238797,-500.0,0.00016426,2]
[401473311,1768252238806,-1000.0,0.00016426,2]
[401473314,1768252238815,-500.0,0.00016426,2]
[401473315,1768252238824,-500.0,0.00016426,2]
[401473316,1768252238834,-1025.94323817,0.00016426,2]
[401473317,1768252238842,-628.77903219,0.00016426,2]
[401473318,1768252238850,-500.0,0.00016426,2]
[401473319,1768252238859,-500.0,0.00016426,2]
[401473320,1768252238868,-500.0,0.00016426,2]
[401473321,1768252238877,-500.0,0.00016426,2]
[401473322,1768252238886,-500.0,0.00016426,2]
[401473323,1768252238895,-500.0,0.00016426,2]
[401473324,1768252238904,-533.88981491,0.00016426,2]
[401473325,1768252238913,-500.0,0.00016426,2]
[401473326,1768252238922,-500.0,0.00016426,2]
[401473327,1768252238931,-500.0,0.00016426,2]
[401473328,1768252238940,-500.0,0.00016426,2]
[401473329,1768252238950,-415.94216041,0.00016426,2]
[401473330,1768252238959,-500.0,0.00016426,2]
[401473332,1768252238967,-398.69804613,0.00016426,2]
[401473334,1768252238977,-3362.986,0.00016436,2]
[401473336,1768252238987,-165.49,0.00016436,2]
[401473338,1768252238996,-567.0,0.00016438,2]
[401473340,1768252239005,-151.0,0.00016438,2]
[401473342,1768252239015,-150.0,0.00016457,2]
[401473344,1768252239024,-150.0,0.000165,2]
[401473346,1768252239033,-150.0,0.000165,2]
[401473348,1768252239043,-150.0,0.000165,2]
[401473350,1768252239053,-150.0,0.0001656,2]
[401473352,1768252239062,-150.0,0.0001656,2]
[401473354,1768252239072,-166.66,0.00016639,2]
[401473356,1768252239082,-150.0,0.0001665,2]
[401473358,1768252239092,-1000.0,0.00016657,2]
[401473360,1768252239101,-914.0,0.00016687,2]
[401473362,1768252239110,-1201.0,0.00016687,2]
[401473364,1768252239120,-150.0,0.00016714,2]
[401473366,1768252239129,-4821.0,0.00016743,2]
[401473368,1768252239138,-566.0,0.00016743,2]
[401473370,1768252239148,-2437.0,0.00016743,2]
[401473373,1768252239157,-150.0,0.000168,2]
[401473376,1768252239166,-150.0,0.000168,2]
[401473417,1768252239518,-150.0,0.000168,2]
[401473419,1768252239528,-150.0,0.000168,2]
[401473421,1768252239537,-232.29826465,0.00016858,2]
[401473423,1768252239547,-1282.18082757,0.00016875,2]
[401473425,1768252239557,-189.15487178,0.00016875,2]
[401473427,1768252239566,-2663.96086522,0.00016875,2]
[401473429,1768252239575,-163.52475399,0.00016881,2]
[401473431,1768252239585,-150.0,0.0001692,2]
[401473433,1768252239593,-150.0,0.0001692,2]
[401473435,1768252239603,-3292.0,0.0001694,2]
[401473437,1768252239612,-150.0,0.00016971,2]
[401473439,1768252239621,-1109.17083251,0.00016972,5]
[401473441,1768252239630,-500.0,0.00016972,2]
[401473443,1768252239640,-500.0,0.00016972,2]
[401473445,1768252239649,-500.0,0.00016972,2]
[401473447,1768252239658,-619.96,0.00016972,2]
[401473449,1768252239667,-5821.0,0.00016972,2]
[401473451,1768252239676,-150.0,0.00016972,2]
[401473453,1768252239685,-82108.01246725,0.00016973,2]
[401473456,1768252239709,-917891.98753275,0.00016973,2]
[401473458,1768252239719,-553.64373807,0.00016974,2]
[401473460,1768252239730,-1282.18082753,0.00016989,2]
[401473462,1768252239739,-2663.9608652,0.00016989,2]
[401473464,1768252239748,-250.0,0.00017,2]
[401473466,1768252239759,-163.52475395,0.00017051,2]
[401473469,1768252239769,-500.0,0.00017073,2]
[401473471,1768252239778,-500.0,0.00017073,2]
[401473473,1768252239788,-500.0,0.00017073,2]
[401473475,1768252239798,-500.0,0.00017073,2]
[401473477,1768252239808,-504.07642883,0.00017073,2]
[401473479,1768252239817,-237.74478366,0.00017073,2]
[401473481,1768252239827,-503.84192068,0.00017073,2]
[401473483,1768252239836,-500.0,0.00017073,2]
[401473485,1768252239846,-500.0,0.00017073,2]
[401473487,1768252239856,-500.0,0.00017073,2]
[401473489,1768252239865,-500.0,0.00017073,2]
[401473491,1768252239874,-500.0,0.00017073,2]
[401473493,1768252239884,-500.0,0.00017073,2]
[401473495,1768252239893,-500.0,0.00017073,2]
[401473497,1768252239903,-648.07606732,0.00017073,2]
[401473499,1768252239912,-500.0,0.00017073,2]
[401473501,1768252239922,-500.0,0.00017073,2]
[401473503,1768252239932,-500.0,0.00017073,2]
[401473505,1768252239941,-500.0,0.00017073,2]
[401473507,1768252239950,-150.0,0.000171,2]
[401473510,1768252239959,-150.0,0.000171,2]
[401473514,1768252239969,-150.0,0.000171,2]
[401473517,1768252239978,-150.0,0.000171,2]
[401473520,1768252239989,-150.0,0.000171,2]
[401473522,1768252239998,-1282.18082753,0.00017103,2]
[401473526,1768252240008,-2663.9608652,0.00017103,2]
[401473529,1768252240017,-166.66,0.00017139,2]
[401473531,1768252240027,-150.0,0.00017181,2]
[401473534,1768252240036,-150.0,0.00017181,2]
[401473537,1768252240047,-150.0,0.00017181,2]
[401473540,1768252240056,-150.0,0.00017181,2]
[401473543,1768252240065,-150.0,0.00017181,2]
[401473546,1768252240074,-150.0,0.00017181,2]
[401473549,1768252240084,-150.0,0.00017181,2]
[401473552,1768252240093,-150.0,0.00017181,2]
[401473555,1768252240102,-150.0,0.00017181,2]
[401473557,1768252240111,-150.0,0.00017181,2]
[401473559,1768252240121,-150.0,0.00017181,2]
[401473561,1768252240130,-3469.0,0.00017181,2]
[401473563,1768252240139,-614.0,0.00017181,2]
[401473565,1768252240149,-1405.0,0.00017181,2]
[401473567,1768252240158,-505.0,0.00017181,2]
[401473569,1768252240167,-1267.0,0.00017181,2]
[401473571,1768252240177,-1282.18082753,0.00017217,2]
[401473573,1768252240188,-2663.9608652,0.00017217,2]
[401473575,1768252240197,-163.52475395,0.00017221,2]
[401473577,1768252240207,-150.0,0.00017229,2]
[401473579,1768252240216,-150.0,0.0001728,2]
[401473581,1768252240225,-150.0,0.0001728,2]
[401473583,1768252240235,-2113.6,0.00017294,2]
[401473585,1768252240244,-998.0,0.0001731,2]
[401473587,1768252240254,-244.0,0.00017315,2]
[401473589,1768252240264,-1282.18082753,0.00017331,2]
[401473591,1768252240273,-2663.9608652,0.00017331,2]
[401473594,1768252240283,-244.0,0.00017383,2]
[401473595,1768252240292,-189.15487177,0.00017388,2]
[401473598,1768252240307,-163.52475395,0.00017391,2]
[401473600,1768252240318,-150.0,0.000174,2]
[401473602,1768252240327,-150.0,0.000174,2]
[401473604,1768252240337,-150.0,0.000174,2]
[401473606,1768252240348,-150.0,0.000174,2]
[401473608,1768252240358,-1282.18082753,0.00017444,2]
[401473610,1768252240367,-2663.9608652,0.00017444,2]
[401473611,1768252240378,-150.0,0.00017486,2]
[401473613,1768252240387,-2000.0,0.000175,2]
[401473615,1768252240396,-574.12855637,0.00017522,2]
[401473617,1768252240406,-244.0,0.00017534,2]
[401473619,1768252240416,-150.0,0.0001755,2]
[401473621,1768252240426,-1282.18082753,0.00017558,2]
[401473623,1768252240435,-2663.9608652,0.00017558,2]
[401473626,1768252240444,-163.52475395,0.0001756,2]
[401473627,1768252240454,-150.0,0.00017599,2]
[401473629,1768252240464,-150.0,0.00017599,2]
[401473631,1768252240473,-313.59851479,0.00017611,2]
[401473633,1768252240483,-1000.0,0.00017621,2]
[401473635,1768252240492,-1000.0,0.00017621,2]
[401473638,1768252240502,-296.82794759,0.00017621,2]
[401473640,1768252240511,-300.28905191,0.00017621,2]
[401473642,1768252240520,-531.53854137,0.00017621,2]
[401473644,1768252240530,-500.84213941,0.00017621,2]
[401473646,1768252240539,-1000.0,0.00017621,2]
[401473648,1768252240548,-500.38035534,0.00017621,2]
[401473650,1768252240558,-1000.0,0.00017621,2]
[401473652,1768252240568,-500.0,0.00017621,2]
[401473654,1768252240577,-166.66,0.00017638,2]
[401473656,1768252240587,-150.0,0.0001764,2]
[401473658,1768252240598,-150.0,0.0001764,2]
[401473660,1768252240608,-3103.04992151,0.0001764,2]
[401473662,1768252240620,-200.0,0.00017654,2]
[401473664,1768252240630,-1282.18082753,0.00017672,2]
[401473666,1768252240640,-2663.9608652,0.00017672,2]
[401473668,1768252240651,-150.0,0.000177,2]
[401473670,1768252240661,-150.0,0.000177,2]
[401473672,1768252240670,-150.0,0.000177,2]
[401473674,1768252240679,-244.0,0.00017723,2]
[401473676,1768252240688,-163.52475395,0.0001773,2]
[401473678,1768252240697,-150.0,0.00017743,2]
[401473680,1768252240706,-244.0,0.00017785,2]
[401473682,1768252240715,-1282.18082753,0.00017786,2]
[401473684,1768252240724,-156.587,0.00017807,2]
[401473686,1768252240734,-244.0,0.00017839,2]
[401473688,1768252240743,-244.0,0.00017844,2]
[401473690,1768252240752,-200.0,0.00017856,2]
[401473692,1768252240762,-244.0,0.00017878,2]
[401473694,1768252240771,-25000.0,0.00017882,3]
[401473696,1768252240780,-25000.0,0.00017891,3]
[401473698,1768252240789,-163.52475395,0.000179,2]
[401473700,1768252240798,-10000.0,0.000179,2]
[401473702,1768252240808,-25000.0,0.000179,3]
[401473704,1768252240817,-2418.0201607,0.000179,2]
[401473706,1768252240826,-2418.02016053,0.000179,2]
[401473708,1768252240836,-2418.02016053,0.000179,2]
[401473710,1768252240845,-2418.02016053,0.000179,2]
[401473712,1768252240854,-2418.02016053,0.000179,2]
[401473714,1768252240863,-2418.02016053,0.000179,2]
[401473716,1768252240873,-2418.02016053,0.000179,2]
[401473718,1768252240882,-2418.02016053,0.000179,2]
[401473720,1768252240896,-2418.02016053,0.000179,2]
[401473722,1768252240905,-338.52904367,0.000179,2]
[401473724,1768252240915,-2418.02016053,0.000179,2]
[401473726,1768252240924,-2418.02016053,0.000179,2]
[401473728,1768252240933,-2418.02016053,0.000179,2]
[401473730,1768252240942,-1282.18082753,0.000179,2]
[401473732,1768252240951,-2418.02016053,0.000179,2]
[401473734,1768252240961,-2418.02016053,0.000179,2]
[401473736,1768252240970,-189.15487177,0.000179,2]
[401473738,1768252240979,-2418.02016053,0.000179,2]
[401473740,1768252240989,-2418.02016053,0.000179,2]
[401473742,1768252240997,-2418.02016053,0.000179,2]
[401473744,1768252241007,-2418.02016053,0.000179,2]
[401473746,1768252241016,-2418.02016053,0.000179,2]
[401473748,1768252241025,-2418.02016053,0.000179,2]
[401473750,1768252241034,-244.0,0.00017904,2]
[401473752,1768252241046,-150.0,0.0001793,2]
[401473754,1768252241055,-7096.31731291,0.0001793,2]
[401473756,1768252241064,-17133.1881196,0.00017958,2]
[401473758,1768252241073,-500.0,0.00017973,2]
[401473760,1768252241082,-500.0,0.00017973,2]
[401473762,1768252241091,-500.0,0.00017973,2]
[401473764,1768252241100,-500.0,0.00017973,2]
[401473766,1768252241109,-500.0,0.00017973,2]
[401473768,1768252241119,-610.36957715,0.00017973,2]
[401473770,1768252241128,-500.0,0.00017973,2]
[401473772,1768252241137,-500.0,0.00017973,2]
[401473774,1768252241145,-500.0,0.00017973,2]
[401473776,1768252241155,-500.0,0.00017973,2]
[401473778,1768252241164,-500.0,0.00017973,2]
[401473780,1768252241173,-515.69548792,0.00017973,2]
[401473782,1768252241182,-191.10319937,0.00017973,2]
[401473784,1768252241192,-500.0,0.00017973,2]
[401473786,1768252241201,-500.0,0.00017973,2]
[401473788,1768252241210,-500.0,0.00017973,2]
[401473790,1768252241219,-500.0,0.00017973,2]
[401473792,1768252241228,-902.39549897,0.00017973,2]
[401473794,1768252241237,-642.03010417,0.00017973,2]
[401473796,1768252241247,-500.0,0.00017973,2]
[401473798,1768252241256,-500.0,0.00017973,2]
[401473800,1768252241266,-273.6592917,0.00017973,2]
[401473802,1768252241276,-500.0,0.00017973,2]
[401473804,1768252241287,-500.0,0.00017973,2]
[401473806,1768252241297,-460.80722915,0.00017973,2]
[401473809,1768252241308,-500.0,0.00017973,2]
[401473811,1768252241319,-162.85500377,0.00017973,2]
[401473812,1768252241329,-500.0,0.00017973,2]
[401473813,1768252241339,-501.2767774,0.00017973,2]
[401473814,1768252241349,-500.0,0.00017973,2]
[401473815,1768252241359,-500.0,0.00017973,2]
[401473816,1768252241369,-500.0,0.00017973,2]
[401473817,1768252241379,-500.0,0.00017973,2]
[401473818,1768252241388,-500.0,0.00017973,2]
[401473819,1768252241398,-500.0,0.00017973,2]
[401473820,1768252241407,-500.0,0.00017973,2]
[401473821,1768252241417,-500.0,0.00017973,2]
[401473823,1768252241426,-500.0,0.00017973,2]
[401473825,1768252241435,-500.0,0.00017973,2]
[401473827,1768252241444,-500.0,0.00017973,2]
[401473829,1768252241453,-500.0,0.00017973,2]
[401473831,1768252241463,-500.0,0.00017973,2]
[401473833,1768252241472,-500.0,0.00017973,2]